Cogmind - Beta 14 @@@ ROGUE MODE // 2024.08.14 @ 10:04:22 Player: Catfish Result: Destroyed by Y-45 Defender with Heavy Assault Rifle Performance ------------- Evolutions (1) 500 Regions Visited (2) 400 Robots Destroyed (11) 55 Value Destroyed (293) 293 Prototype IDs (1) 20 Alien Tech Used (0) 0 Bonus (0) 0 TOTAL SCORE: 1268 Bonus ------- None Cogmind --------- Core Integrity 0/400 Matter 270/300 Energy 99/100 System Corruption 1% Temperature Cool (9) Movement Rolling (105) Ox1 Location -9/Materials Parts ------- > --- POWER (1) -------- (None) > --- PROPULSION (3) --- Armored Wheel > --- UTILITY (3) ------ Small Storage Unit Signal Interpreter > --- WEAPON (2) ------- Advanced Beam Cannon Advanced Beam Cannon > --- INVENTORY (8) ---- Sensor Array Signal Interpreter ECM Suite Mini Grenade Launcher Peak State ------------ > --- POWER ------------ Ion Engine > --- PROPULSION ------- Improved Aluminum Leg Improved Aluminum Leg Improved Aluminum Leg > --- UTILITY ---------- Small Storage Unit Sensor Array Signal Interpreter > --- WEAPON ----------- Light EM Pulse Cannon Light EM Pulse Cannon > --- INVENTORY -------- Sensor Array Signal Interpreter ECM Suite Light EM Pulse Cannon Light EM Pulse Cannon Advanced Beam Cannon Mini Grenade Launcher [Rating: 15] Favorites ----------- Power Ion Engine Engine Ion Engine Propulsion Improved Aluminum Leg Leg Improved Aluminum Leg Wheel Wheel Utility Small Storage Unit Device Sensor Array Storage Small Storage Unit Processor Signal Interpreter Weapon Light EM Pulse Cannon Energy Gun Medium Laser Energy Cannon Light EM Pulse Cannon Ballistic Gun Assault Rifle Build | -11 -10 -9 ------- Run | Yrd Mat Mat Slots Evolved 2 | . . 2 Power . | . . . Propulsion 1 | . . 1 Utility 1 | . . 1 Weapon . | . . . Parts Attached 18 | 6 5 7 Power 1 | 1 . . Engine 1 | 1 . . Core . | . . . Reactor . | . . . Propulsion 6 | 2 2 2 Treads . | . . . Leg 3 | . 2 1 Wheel 3 | 2 . 1 Hover . | . . . Flight . | . . . Utility 3 | 1 1 1 Device 1 | . . 1 Storage 1 | 1 . . Processor 1 | . 1 . Hackware . | . . . Protection . | . . . Artifact . | . . . Weapon 8 | 2 2 4 Energy Gun 1 | 1 . . Energy Cannon 6 | . 2 4 Ballistic Gun 1 | 1 . . Ballistic Cannon . | . . . Launcher . | . . . Special Weapon . | . . . Impact Weapon . | . . . Slashing Weapon . | . . . Piercing Weapon . | . . . Special Melee Weapon . | . . . Unidentified Prototypes 1 | . . 1 Parts Lost 9 | . . 9 Power 1 | . . 1 Propulsion 3 | . . 3 Utility 1 | . . 1 Weapon 4 | . . 4 Highest Loss Streak 7 | . . 7 To Critical Strikes . | . . . Average Slot Usage (%) 82 | . 91 74 Engine 10 | . 14 7 Leg 17 | . 12 21 Wheel 7 | . 14 1 Device 4 | . . 8 Storage 12 | . 14 11 Processor 9 | . 7 11 Energy Gun 1 | . 2 . Energy Cannon 17 | . 22 13 Ballistic Gun 1 | . 2 . Peak Build Rating 15 | 6 12 15 Average Rating 9 | 4 9 10 On Entrance 6 | . 6 12 Naked Turns . | . . . Heaviest Build 19 | 14 18 19 Greatest Support 39 | 20 26 39 Greatest Overweight (x) 5 | 1 5 4 Average Overweight (x) . | . . . Largest Inventory Capacity 8 | 8 8 8 Average Capacity 7 | 6 8 8 Most Carried 8 | 4 8 8 Average Carried 6 | 2 6 6 Final Capacity 8 | 8 8 8 Final Carried 8 | 4 8 4 Class Distribution -------------------- 100% | Mutant Dominant Class ---------------- Mutant | -10/Materials Mutant | -9/Materials Resources | -11 -10 -9 ----------- Run | Yrd Mat Mat Matter Collected 350 | 201 109 40 Remotely . | . . . Salvage Created 410 | . 145 265 Parts 16 | . 7 9 Haulers Intercepted 1 | . 1 . Recyclers Shooed . | . . . Parts Field Recycled . | . . . Retrieved Matter . | . . . Parts Self-Destructed . | . . . Prevented . | . . . Kills | -11 -10 -9 ------- Run | Yrd Mat Mat Combat Hostiles Destroyed 10 | . 2 8 Cannons 9 | . 1 8 Classes Destroyed 3 | . 2 1 Hauler 1 | . 1 . Swarmer 3 | . . 3 Grunt 7 | . 2 5 Best Kill Streak 6 | . 2 6 Combat Bots Only 6 | . 2 6 Max Kills in Single Turn 1 | . 1 1 Gunslinging . | . . . Exploded . | . . . Melee . | . . . Uniques/NPCs Destroyed . | . . . Combat | -11 -10 -9 -------- Run | Yrd Mat Mat Hostile Shots Fired 158 | . 9 149 Missed 59 | . 3 56 Damage Taken 1352 | . 118 1234 Core 458 | . 49 409 Absorbed by Shields . | . . . Core Remaining (%) 90 | 100 80 . Volleys Fired 18 | . 6 12 Largest 2 | . 2 2 Hottest 112 | . 112 112 Shots Fired 36 | . 12 24 Gun . | . . . Cannon 36 | . 12 24 Launcher . | . . . Special . | . . . Kinetic . | . . . Thermal . | . . . Explosive . | . . . Electromagnetic 36 | . 12 24 Robot Hit Streak 17 | . 6 17 Robot Miss Streak 1 | . 1 1 Penetration Max . | . . . Secondary Targets . | . . . Shots Hit Robots 30 | . 10 20 Core Hits 12 | . 3 9 Critical Kills . | . . . Critical Parts Destroyed . | . . . Critical Strikes . | . . . Melee Attacks . | . . . Impact . | . . . Slashing . | . . . Piercing . | . . . Sneak Attacks . | . . . Combat Hostiles . | . . . Follow-up Attacks . | . . . Damage Inflicted 754 | . 267 487 Guns . | . . . Cannons 660 | . 235 425 Explosions 94 | . 32 62 Melee . | . . . Ramming . | . . . Kinetic . | . . . Thermal 94 | . 32 62 Explosive . | . . . Electromagnetic 660 | . 235 425 Impact . | . . . Slashing . | . . . Piercing . | . . . Highest Corruption 1 | . . 1 Average Corruption 1 | . . 1 Corruption Purged . | . . . Corruption Blocked . | . . . Effects 1 | . . 1 Energy Discharges 1 | . . 1 Overload Shots . | . . . Overflow Damage . | . . . Projectiles . | . . . Explosions . | . . . Melee . | . . . Knockbacks . | . . . Impact . | . . . Kinetic . | . . . Secondary . | . . . Self-Inflicted Damage 35 | . 35 . Shots 1 | . 1 . Rammed . | . . . Targets Rammed . | . . . Kicked . | . . . Crushed . | . . . Highest Temperature 235 | . 235 145 Average Temperature 68 | . 106 48 Received Heat Transfer 642 | . 48 594 Siege Activations . | . . . Robots Corrupted 1 | . 1 . Combat Hostiles 1 | . 1 . Parts Fried . | . . . Impact Corruptions . | . . . Robots Melted . | . . . Combat Hostiles . | . . . Parts Melted . | . . . Heat Transferred 150 | . 50 100 Parts Sabotaged . | . . . Parts Stolen . | . . . Parts Stripped . | . . . Power Chain Reactions 2 | . 1 1 Alert | -11 -10 -9 ------- Run | Yrd Mat Mat Peak Influence 269 | . 127 269 Initial 53 | . . 53 Average 101 | . 80 127 Maximum Alert Level 1 | . . 1 Low Security (%) 87 | 100 100 76 Level 1 12 | . . 23 Level 2 . | . . . Level 3 . | . . . Level 4 . | . . . Level 5 . | . . . High Security . | . . . Max Security . | . . . Squads Dispatched 3 | . . 3 Investigation 1 | . . 1 Extermination . | . . . Reinforcement 2 | . . 2 Assault . | . . . Garrison . | . . . Intercept . | . . . Searches Triggered . | . . . Construction Impeded . | . . . Haulers Reinforced . | . . . Active Scanning Responses . | . . . Cargo Convoy Interrupts . | . . . Stealth | -11 -10 -9 --------- Run | Yrd Mat Mat Distress Signals 3 | . . 3 Communications Jammed . | . . . Distress Signals . | . . . Times Spotted 35 | . 6 29 Peak Tracking Total 11 | . 5 11 Tactical Retreats 9 | . . 9 Traps | -11 -10 -9 ------- Run | Yrd Mat Mat Traps Triggered . | . . . Indirectly . | . . . Trap Hack Attempts . | . . . Triggered . | . . . Disarmed . | . . . Reprogrammed . | . . . Reused . | . . . Traps Extracted . | . . . Installed . | . . . Triggered . | . . . Machines | -11 -10 -9 ---------- Run | Yrd Mat Mat Machines Disabled 1 | . 1 . Max in Single Turn 1 | . 1 . Machines Repaired . | . . . Machines Dismantled . | . . . Machines Sabotaged . | . . . Overloaded Fab Kills . | . . . Hacking | -11 -10 -9 --------- Run | Yrd Mat Mat Machines Accessed 8 | . 5 3 Terminals 7 | . 4 3 Fabricators . | . . . Repair Stations . | . . . Recycling Units 1 | . 1 . Scanalyzers . | . . . Garrison Access . | . . . Total Hacks 20 | . 12 8 Successful 11 | . 8 3 Failed 9 | . 4 5 Catastrophic 1 | . . 1 Database Lockouts . | . . . Manual 16 | . 8 8 Terminals 18 | . 10 8 Fabricators . | . . . Repair Stations . | . . . Recycling Units 2 | . 2 . Scanalyzers . | . . . Garrison Access . | . . . Terminal Hacks 5 | . 3 2 Branch Access Points 1 | . 1 . Alert Level 1 | . 1 . Unreport Threat 2 | . . 2 Hauler Manifests 1 | . 1 . Fabricator Hacks . | . . . Repair Station Hacks . | . . . Recycling Unit Hacks 2 | . 2 . Recycle Component 1 | . 1 . Report Inventory 1 | . 1 . Scanalyzer . | . . . Garrison Access Hacks . | . . . Unauthorized Hacks 4 | . 3 1 Terminals 4 | . 3 1 Botnet 4 | . 3 1 Fabricators . | . . . Repair Stations . | . . . Recycling Units . | . . . Scanalyzers . | . . . Garrison Access . | . . . Data Cores Recovered . | . . . Used . | . . . Hacking Detections 7 | . 4 3 Full Trace Events 1 | . . 1 Feedback Events 1 | . . 1 Corruption 1 | . . 1 Feedback Blocked . | . . . Robot Schematics Acquired . | . . . Robots Built . | . . . Authchips . | . . . Time . | . . . Total Robot Build Rating . | . . . Part Schematics Acquired . | . . . Parts Built . | . . . Authchips . | . . . Time . | . . . Total Part Build Rating . | . . . Parts Repaired . | . . . Time . | . . . Parts Recycled 1 | . 1 . Recycled Matter . | . . . Retrieved Matter . | . . . Retrieved Components . | . . . Parts Scanalyzed . | . . . Part Schematics Acquired . | . . . Parts Damaged . | . . . Bothacking | -11 -10 -9 ------------ Run | Yrd Mat Mat Used RIF Installer . | . . . Robots Hacked . | . . . Non-combat . | . . . Combat . | . . . Robot Hacks Applied . | . . . Relay Couplers Released . | . . . Fabnet Peak Effective % . | . . . Robots Rewired . | . . . Allies Hacked . | . . . Hacks Repelled . | . . . Allies | -11 -10 -9 -------- Run | Yrd Mat Mat Total Allies . | . . . Largest Group . | . . . Highest-Rated Group . | . . . Highest-Rated Ally . | . . . Total Orders . | . . . Ally Attacks . | . . . Total Damage . | . . . Kills . | . . . Allies Corrupted . | . . . Allies Melted . | . . . Intel | -11 -10 -9 ------- Run | Yrd Mat Mat Robot Analysis Total . | . . . Derelict Logs Recovered . | . . . Drone Launches . | . . . Drone Recoveries . | . . . Exploration | -11 -10 -9 ------------- Run | Yrd Mat Mat Turns Passed 930 | 47 385 498 Spaces Moved 750 | 41 343 366 Core 92 | 14 4 74 Treads . | . . . Legs 369 | . 135 234 Wheels 289 | 27 204 58 Hover . | . . . Flight . | . . . Fastest Speed 50 | 50 80 90 Average Speed 107 | 81 98 117 Slowest Speed 300 | 100 300 250 Overloaded Moves . | . . . Propulsion Burnouts . | . . . Robots Hopped . | . . . Cave-ins Triggered . | . . . Exploration Rate (%) 34 | 3 60 39 Regions Visited 2 Branch Regions . Pre-discovered Areas . | . . . Known Exits Taken 1 | . 1 . Unknown Exits Taken 1 | 1 . . Scrap Searched . | . . . Spaces Dug . | . . . Terrain Destroyed 10 | . 4 6 Melee . | . . . Projectile . | . . . AOE 10 | . 4 6 Terrain Rammed . | . . . Walls Destroyed . | . . . Machines Disabled . | . . . Actions | -11 -10 -9 --------- Run | Yrd Mat Mat Total 841 | 51 382 408 Wait 28 | . 7 21 Move 748 | 40 342 366 Hop . | . . . Pick Up 20 | 5 13 2 Fast Attach 8 | 5 2 1 Attach 8 | 1 1 6 Detach . | . . . Swap 2 | . 2 . Drop 9 | . 9 . Fire 18 | . 6 12 Melee . | . . . Ram . | . . . Kick . | . . . Crush . | . . . Escape Stasis . | . . . Rewire . | . . . Trap . | . . . Miscellaneous . | . . . Route ------- -11/Scrapyard -10/Materials (discovered 3 exits: *Mat / *Min x2) -9/Materials History --------- Turn | Location | Event 33 | -11/Scrapyard | Discovered new exit (range 13) 48 | -11/Scrapyard | Entered Materials 48 | -10/Materials | Discovered new exit (range 8) 84 | -10/Materials | Discovered new exit (range 11) 305 | -10/Materials | Build established: Mutant 367 | -10/Materials | Identified exit to Mines 379 | -10/Materials | Discovered new exit (range 10) 432 | -10/Materials | Identified exit to Materials 433 | -10/Materials | Entered another Materials area 433 | -9/Materials | Evolved 2 slots: Propulsion x1, Utility x1 816 | -9/Materials | Core integrity fell below 50% 845 | -9/Materials | Lost 7 parts (1p3n1u2w) 845 | -9/Materials | Core integrity fell below 20% 931 | -9/Materials | Destroyed by Y-45 Defender with Heavy Assault Rifle Last Messages --------------- G-47 Trooper IFF system glitched. Critical hit (Burn: +37). G-47 Trooper misfires. Acquired Arm. Wheel. T-07 Excavator is excavating. Connecting with Terminal... Feedback: System corruption (+1%). ALERT: Suspicious activity at Terminal M010. Dispatching Investigation squad. System corrupted: Energy discharge (-34). U-05 Engineer lays Concrete. K-01 Serf collects debris. Identified Adv. Beam Cannon. K-01 Serf cleans the Hadron Collector. Connecting with Terminal... >>Alert(Purge) Purged threat record, alert level lowered. K-01 Serf cleans the Terminal. U-05 Engineer builds a Wall. K-01 Serf collects debris. Map ----- +----------------------------------------------------+ | ???????####+##### #####"############ #??####??? | | ?????????? ???# # # ??# #? # | | ?????????#? ???# # # ?# #?"" # | | ?????????? ??# # """ # # #""" # | | ?????????? """??# # """"" # # #""" # | | ?????????# """ ?# # """"" #? / + # | | ?????????# """ ?# # """"" #??????# # # | | ?????????######### # """ #??????## ##! "Y" # | | ?????????????????# # #???????# #?? """ ? | | ?????????????????? ###########???????# #?? ? | | ?????????????????? ??????????????????# #???######? | | ?????????????????? ??????????????????# #?????????? | | ?????????????????? ??????????????????# #?????????? | | ?????????????????? ??????????????????# #?????????? | | ?????????????????? ??????????????????# #?????????? | | ?????????????????? ??????????????????# #?????????? | | ?????????????????? ??????????????????# #?????????? | | ?????????????????? ??##########??????# #?????????? | | ?????????????????? ??# k #??????#+########??? | | ?????????????????? ??# "T" #??????# #??? | | ?????????????????? ??#[ #??????# """"" #??? | | ?????????????????# #?# """ #??????# """"" ???? | | ??????????######## #?# """ #??? # """"" ???? | | ??????????# # #?# """ # # """"" ???? | | ??????????# """ # #?# """ + # """"" #??? | | ??????????# """ # #?# @ YY# ???# """"" #??? | | ??????????# """ # #?# # ???# """"" #??? | | ??????????# # #?####Y#####? ???# #??? | | ??????????# """ # #### Y#######+####+#######??? | | ??????????# """ + " #??????? | | ??????????# """ # "T #??????? | | ??????????# ###### ## #########+###??????? | | ??????????# """ #????###### ????? ???????? | | ??????????# """ #?????????### #?? """ """ ?????? | | ??????????# """ #????????????? ## """ """ #???? | | ??????????# ???????????????## """ """ #???? | | ??????????#######????????????????# """ """ #???? | | ?????????????????????????????????# """ """ #???? | | ?????????????????????????????????#???? ????#???? | | ??????????????????????????????????????###????????? | | | | | | | | | | | | | | | | | | | | | +----------------------------------------------------+ Best States ------------- Heat Dissipation 28 Energy Generation 10 Energy Capacity 250 Matter Stores 300 Matter Capacity 300 Sight Range 16 Robot Scan Range 14 Terrain Scan Density 10 Evasion (%) 55 Item Schematics ----------------- None Robot Schematics ------------------ None Fabricated ------------ Nothing Alien Tech Used ----------------- None Achievements -------------- None Challenges ------------ None Game ------ Seed CryofiberSubdwellerCanceller Manual? 0 Play Time 00:17:13 Cumulative 6.4 hours Start 2024.08.14 @ 09:20:53 End 2024.08.14 @ 10:04:22 Sessions 3 Manual Loads 0 Difficulty Rogue Special Mode None Game No. 27 Rogue 27 Adventurer 0 Explorer 0 Win Type - Total 0 Types 0/0/0/0/0/0/0/0/0 Lore% 9 Gallery% 13 Achievement% 16 Wizard Run 0 Options --------- Layout 1 ASCII 0 Keyboard 0 Movement Numpad Keybinds 0 Fullscreen 2 Font 24/Smallcaps Map View 50x35 Zoom Use 0% Tactical HUD 0 Map Filters NONE Filters NONE Steam 1 RUN: e2a7ffd5-f757-4bf0-bbb7-0f66f18fee17